fUSD/lending_fUSD_20240428
["ID","MTS","AMOUNT","RATE_DAILY","PERIOD"]
[17087,1714329079462,-500.0,0.00011506,2]
[17089,1714329079480,-4114.94,0.00011506,2]
[17091,1714329079499,-500.0,0.00011506,2]
[17093,1714329079517,-951.17,0.00011506,2]
[17095,1714329079536,-500.0,0.00011506,2]
[17097,1714329079555,-500.0,0.00011506,2]
[17099,1714329079573,-179.68474435,0.00011506,2]
[17101,1714329079592,-500.0,0.00011506,2]
[17103,1714329079611,-767.86,0.00011506,2]
[17105,1714329079629,-3161.91,0.00011506,2]
[17107,1714329079648,-500.0,0.00011506,2]
[17109,1714329079670,-500.0,0.00011506,2]
[17111,1714329079688,-15996.67,0.00011506,2]
[17113,1714329079707,-973.2,0.00011506,2]
[17115,1714329079726,-29286.52,0.00011506,2]
[17117,1714329079746,-789.38,0.00011506,2]
[17119,1714329079766,-1682.07,0.00011506,2]
[17120,1714329079775,-500.0,0.00011506,2]
[17121,1714329079785,-2249.55,0.00011506,2]
[17123,1714329079804,-1270.09,0.00011506,2]
[17125,1714329079823,-3871.91,0.00011506,2]
[17127,1714329079843,-500.0,0.00011506,2]
[17129,1714329079862,-859.1,0.00011506,2]
[17130,1714329079872,-500.0,0.00011506,2]
[17131,1714329079882,-500.0,0.00011506,2]
[17133,1714329079903,-1538.2,0.00011506,2]
[17135,1714329079925,-500.0,0.00011506,2]
[17137,1714329079945,-1638.81,0.00011506,2]
[17138,1714329079956,-500.0,0.00011506,2]
[17139,1714329079965,-500.0,0.00011506,2]
[17140,1714329079975,-1607.959395,0.00011506,2]
[17141,1714329079986,-1607.959395,0.00011506,2]
[17142,1714329079996,-1530.5,0.00011506,2]
[17143,1714329080006,-500.0,0.00011506,2]
[17144,1714329080015,-500.0,0.00011506,2]
[17145,1714329080025,-1297.13,0.00011506,2]
[17146,1714329080034,-1018.03,0.00011506,2]
[17147,1714329080044,-6205.7,0.00011506,2]
[17148,1714329080053,-1613.15,0.00011506,2]
[17149,1714329080064,-500.0,0.00011506,2]
[17151,1714329080084,-10958.77,0.00011506,2]
[17152,1714329080095,-500.0,0.00011506,2]
[17153,1714329080104,-1395.16,0.00011506,2]
[17155,1714329080124,-500.0,0.00011506,2]
[17157,1714329080143,-210.936212,0.00011506,2]
[17159,1714329080163,-633.01,0.00011506,2]
[17161,1714329080182,-460.13347288,0.00011506,2]
[17163,1714329080201,-535.01,0.00011506,2]
[17165,1714329080220,-596.65,0.00011506,2]
[17167,1714329080239,-500.0,0.00011506,2]
[17168,1714329080248,-500.0,0.00011506,2]
[17169,1714329080258,-500.0,0.00011506,2]
[17171,1714329080278,-2602.9,0.00011506,2]
[17172,1714329080288,-500.0,0.00011506,2]
[17173,1714329080297,-500.0,0.00011506,2]
[17175,1714329080315,-769.08,0.00011506,2]
[17176,1714329080325,-1669.71,0.00011506,2]
[17177,1714329080334,-1691.23,0.00011506,2]
[17178,1714329080343,-2082.9,0.00011506,2]
[17179,1714329080353,-4569.34,0.00011506,2]
[17181,1714329080372,-500.0,0.00011506,2]
[17183,1714329080392,-500.0,0.00011506,2]
[17185,1714329080411,-4338.45,0.00011506,2]
[17187,1714329080431,-23869.88,0.00011506,2]
[17189,1714329080451,-1489.55,0.00011506,2]
[17191,1714329080470,-562.28850715,0.00011506,2]
[17193,1714329080490,-1816.26,0.00011506,2]
[17195,1714329080510,-500.0,0.00011506,2]
[17197,1714329080530,-744.76,0.00011506,2]
[17199,1714329080548,-2315.27,0.00011506,2]
[17201,1714329080567,-500.0,0.00011506,2]
[17203,1714329080586,-500.0,0.00011506,2]
[17205,1714329080606,-5437.95,0.00011506,2]
[17207,1714329080624,-1002.92,0.00011506,2]
[17209,1714329080643,-500.0,0.00011506,2]
[17211,1714329080663,-937.09,0.00011506,2]
[17213,1714329080686,-1605.35,0.00011506,2]
[17215,1714329080706,-970.64,0.00011506,2]
[17217,1714329080725,-1552.38,0.00011506,2]
[17219,1714329080745,-529.05,0.00011506,2]
[17221,1714329080765,-500.0,0.00011506,2]
[17223,1714329080784,-2307.17,0.00011506,2]
[17225,1714329080803,-500.0,0.00011506,2]
[17227,1714329080822,-502.9681844,0.00011506,2]
[17228,1714329080831,-854.43,0.00011506,2]
[17229,1714329080841,-962.05,0.00011506,2]
[17230,1714329080850,-500.0,0.00011506,2]
[17231,1714329080860,-500.0,0.00011506,2]
[17232,1714329080869,-1819.29,0.00011506,2]
[17233,1714329080878,-2010.03,0.00011506,2]
[17235,1714329080897,-500.0,0.00011506,2]
[17236,1714329080907,-1034.68,0.00011506,2]
[17237,1714329080916,-883.46,0.00011506,2]
[17238,1714329080925,-500.0,0.00011506,2]
[17239,1714329080935,-3134.07,0.00011506,2]
[17241,1714329080954,-500.0,0.00011506,2]
[17243,1714329080973,-522.5913822,0.00011506,2]
[17244,1714329080982,-500.0,0.00011506,2]
[17245,1714329080992,-1380.46,0.00011506,2]
[17246,1714329081001,-3231.29,0.00011506,2]
[17247,1714329081010,-753.21,0.00011506,2]
[17248,1714329081020,-500.0,0.00011506,2]
[17249,1714329081029,-500.0,0.00011506,2]
[17251,1714329081048,-1293.28,0.00011506,2]
[17253,1714329081068,-546.48,0.00011506,2]
[17255,1714329081087,-500.0,0.00011506,2]
[17257,1714329081107,-3266.32,0.00011506,2]
[17258,1714329081116,-2166.18,0.00011506,2]
[17259,1714329081127,-500.0,0.00011506,2]
[17260,1714329081136,-1985.87,0.00011506,2]
[17261,1714329081146,-992.28,0.00011506,2]
[17263,1714329081165,-881.51,0.00011506,2]
[17264,1714329081175,-383.19701982,0.00011506,2]
[17265,1714329081185,-544.19,0.00011506,2]
[17266,1714329081194,-500.0,0.00011506,2]
[17267,1714329081203,-1077.92,0.00011506,2]
[17268,1714329081213,-500.0,0.00011506,2]
[17269,1714329081223,-570.7,0.00011506,2]
[17271,1714329081242,-3414.29,0.00011506,2]
[17273,1714329081261,-500.0,0.00011506,2]
[17275,1714329081280,-500.0,0.00011506,2]
[17276,1714329081289,-500.0,0.00011506,2]
[17277,1714329081299,-3322.95,0.00011506,2]
[17278,1714329081308,-500.0,0.00011506,2]
[17279,1714329081318,-500.0,0.00011506,2]
[17281,1714329081337,-500.0,0.00011506,2]
[17283,1714329081356,-500.0,0.00011506,2]
[17285,1714329081375,-2488.18,0.00011506,2]
[17287,1714329081394,-500.0,0.00011506,2]
[17289,1714329081412,-500.0,0.00011506,2]
[17291,1714329081635,-610.99,0.00011506,2]
[17292,1714329081644,-813.03,0.00011506,2]
[17293,1714329081654,-500.0,0.00011506,2]
[17295,1714329081677,-1635.67,0.00011506,2]
[17297,1714329081695,-2094.6,0.00011506,2]
[17299,1714329081718,-504.62125694,0.00011506,2]
[17301,1714329081737,-500.0,0.00011506,2]
[17303,1714329081760,-500.0,0.00011506,2]
[17305,1714329081780,-500.0,0.00011506,2]
[17307,1714329081798,-500.0,0.00011506,2]
[17309,1714329081817,-601.67,0.00011506,2]
[17311,1714329081835,-1318.58,0.00011506,2]
[17313,1714329081855,-500.0,0.00011506,2]
[17314,1714329081864,-549.5,0.00011506,2]
[17315,1714329081874,-500.0,0.00011506,2]
[17316,1714329081884,-648.58,0.00011506,2]
[17317,1714329081893,-6907.46,0.00011506,2]
[17319,1714329081912,-500.0,0.00011506,2]
[17320,1714329081921,-669.27,0.00011506,2]
[17321,1714329081930,-513.94,0.00011506,2]
[17322,1714329081940,-1176.65,0.00011506,2]
[17323,1714329081949,-3651.69,0.00011506,2]
[17324,1714329081958,-510.79,0.00011506,2]
[17325,1714329081967,-500.0,0.00011506,2]
[17326,1714329081977,-500.0,0.00011506,2]
[17327,1714329081986,-500.0,0.00011506,2]
[17328,1714329081995,-500.0,0.00011506,2]
[17329,1714329082005,-500.0,0.00011506,2]
[17331,1714329082023,-500.0,0.00011506,2]
[17333,1714329082041,-500.0,0.00011506,2]
[17335,1714329082060,-943.47,0.00011506,2]
[17336,1714329082069,-500.0,0.00011506,2]
[17337,1714329082078,-517.3,0.00011506,2]
[17339,1714329082096,-3099.3,0.00011506,2]
[17340,1714329082105,-500.0,0.00011506,2]
[17341,1714329082114,-500.0,0.00011506,2]
[17343,1714329082133,-821.68,0.00011506,2]
[17345,1714329082151,-1115.92,0.00011506,2]
[17347,1714329082170,-540.62,0.00011506,2]
[17348,1714329082179,-529.06,0.00011506,2]
[17349,1714329082188,-677.53,0.00011506,2]
[17351,1714329082207,-500.0,0.00011506,2]
[17352,1714329082216,-1835.72,0.00011506,2]
[17353,1714329082225,-500.0,0.00011506,2]
[17354,1714329082234,-658.86,0.00011506,2]
[17355,1714329082243,-540.14,0.00011506,2]
[17357,1714329082261,-1100.33,0.00011506,2]
[17359,1714329082279,-500.0,0.00011506,2]
[17361,1714329082297,-315.28801809,0.000117,2]
[17363,1714329082316,-503.25793704,0.0001178,2]
[17364,1714329082325,-502.64318487,0.0001178,2]
[17365,1714329082334,-500.0,0.0001178,2]
[17367,1714329082353,-500.0,0.0001178,2]
[17369,1714329082371,-500.0,0.0001178,2]
[17371,1714329082390,-500.0,0.0001178,2]
[17373,1714329082408,-500.0,0.0001178,2]
[17375,1714329082427,-503.00244402,0.0001178,2]
[17377,1714329082445,-665.06,0.0001178,2]
[17379,1714329082464,-500.0,0.0001178,2]
[17381,1714329082483,-500.0,0.0001178,2]
[17383,1714329082502,-500.0,0.0001178,2]
[17385,1714329082520,-500.0,0.0001178,2]
[17387,1714329082539,-500.0,0.0001178,2]
[17389,1714329082558,-503.18036406,0.0001178,2]
[17391,1714329082576,-500.0,0.0001178,2]
[17393,1714329082595,-500.0,0.0001178,2]
[17395,1714329082614,-503.897931,0.0001178,2]
[17397,1714329082632,-611.53,0.0001178,2]
[17399,1714329082651,-500.0,0.0001178,2]
[17401,1714329082672,-500.0,0.0001178,2]
[17403,1714329082691,-500.0,0.0001178,2]
[17405,1714329082710,-500.0,0.0001178,2]
[17407,1714329082728,-500.0,0.0001178,2]
[17409,1714329082749,-500.0,0.0001178,2]
[17410,1714329082758,-500.0,0.0001178,2]
[17411,1714329082767,-500.0,0.0001178,2]
[17412,1714329082776,-184.51557575,0.0001178,2]
[17413,1714329082785,-522.25,0.0001178,2]
[17415,1714329082803,-500.0,0.0001178,2]
[17417,1714329082822,-560.42,0.0001178,2]
[17418,1714329082831,-626.23,0.0001178,2]
[17419,1714329082840,-1310.66,0.0001178,2]
[17421,1714329082858,-500.0,0.0001178,2]
[17422,1714329082867,-500.0,0.0001178,2]
[17423,1714329082876,-500.0,0.0001178,2]
[17424,1714329082885,-1056.37,0.0001178,2]
[17425,1714329082894,-500.0,0.0001178,2]
[17426,1714329082903,-500.0,0.0001178,2]
[17427,1714329082913,-500.0,0.0001178,2]
[17428,1714329082922,-500.0,0.0001178,2]
[17429,1714329082931,-501.7,0.0001178,2]
[17430,1714329082940,-500.0,0.0001178,2]
[17431,1714329082950,-775.76,0.0001178,2]
[17432,1714329082959,-676.09,0.0001178,2]
[17433,1714329082968,-500.0,0.0001178,2]
[17434,1714329082977,-500.0,0.0001178,2]
[17435,1714329082987,-500.0,0.0001178,2]
[17436,1714329082996,-500.0,0.0001178,2]
[17437,1714329083005,-500.0,0.0001178,2]
[17438,1714329083014,-500.0,0.0001178,2]
[17439,1714329083024,-500.0,0.0001178,2]
[17440,1714329083033,-540.43,0.0001178,2]
[17441,1714329083042,-500.0,0.0001178,2]
[17443,1714329083060,-551.61,0.0001178,2]
[17445,1714329083079,-500.0,0.0001178,2]
[17446,1714329083090,-500.0,0.0001178,2]
[17447,1714329083099,-500.0,0.0001178,2]
[17448,1714329083109,-500.0,0.0001178,2]
[17449,1714329083118,-500.0,0.0001178,2]
[17450,1714329083127,-500.0,0.0001178,2]
[17451,1714329083136,-549.6,0.0001178,2]
[17452,1714329083146,-500.0,0.0001178,2]
[17453,1714329083155,-500.0,0.0001178,2]
[17454,1714329083164,-527.24,0.0001178,2]
[17455,1714329083173,-500.0,0.0001178,2]
[17456,1714329083182,-500.0,0.0001178,2]
[17457,1714329083191,-500.0,0.0001178,2]
[17458,1714329083200,-500.0,0.0001178,2]
[17459,1714329083209,-500.0,0.0001178,2]
[17460,1714329083218,-500.0,0.0001178,2]
[17461,1714329083228,-500.0,0.0001178,2]
[17462,1714329083238,-500.0,0.0001178,2]
[17463,1714329083247,-500.0,0.0001178,2]
[17464,1714329083256,-500.0,0.0001178,2]
[17465,1714329083265,-500.0,0.0001178,2]
[17466,1714329083274,-500.0,0.0001178,2]
[17467,1714329083283,-500.0,0.0001178,2]
[17468,1714329083292,-500.0,0.0001178,2]
[17469,1714329083302,-500.0,0.0001178,2]
[17470,1714329083311,-500.0,0.0001178,2]
[17471,1714329083320,-500.0,0.0001178,2]
[17472,1714329083329,-500.0,0.0001178,2]
[17473,1714329083338,-725.96,0.0001178,2]
[17474,1714329083347,-500.0,0.0001178,2]
[17475,1714329083356,-501.49738661,0.0001178,2]
[17477,1714329083375,-500.0,0.0001178,2]
[17479,1714329083394,-500.0,0.0001178,2]
[17480,1714329083403,-500.0,0.0001178,2]
[17481,1714329083412,-500.0,0.0001178,2]
[17482,1714329083421,-500.0,0.0001178,2]
[17483,1714329083431,-1019.23,0.0001178,2]
[17485,1714329083449,-500.0,0.0001178,2]
[17487,1714329083467,-500.0,0.0001178,2]
[17488,1714329083477,-502.22415547,0.0001178,2]
[17489,1714329083486,-500.0,0.0001178,2]
[17490,1714329083495,-500.0,0.0001178,2]
[17491,1714329083505,-628.03,0.0001178,2]
[17492,1714329083514,-500.0,0.0001178,2]
[17493,1714329083523,-389.97997343,0.0001178,2]
[17494,1714329083532,-500.0,0.0001178,2]
[17495,1714329083541,-500.0,0.0001178,2]
[17496,1714329083550,-720.76,0.0001178,2]
[17497,1714329083560,-500.0,0.0001178,2]
[17498,1714329083569,-500.0,0.0001178,2]
[17499,1714329083578,-1178.77,0.0001178,2]
[17500,1714329083587,-500.0,0.0001178,2]
[17501,1714329083597,-500.0,0.0001178,2]
[17502,1714329083607,-500.0,0.0001178,2]
[17503,1714329083617,-500.0,0.0001178,2]
[17505,1714329083635,-707.71,0.0001178,2]
[17506,1714329083644,-832.16,0.0001178,2]
[17507,1714329083654,-500.0,0.0001178,2]
[17508,1714329083666,-605.1,0.0001178,2]
[17509,1714329083676,-500.0,0.0001178,2]
[17510,1714329083685,-500.0,0.0001178,2]
[17511,1714329083695,-204.52148142,0.0001178,2]
[17512,1714329083704,-500.0,0.0001178,2]
[17513,1714329083715,-500.0,0.0001178,2]
[17514,1714329083724,-585.93,0.0001178,2]
[17515,1714329083733,-210.67718319,0.0001178,2]
[17516,1714329083742,-500.0,0.0001178,2]
[17517,1714329083752,-500.0,0.0001178,2]
[17518,1714329083761,-502.27028896,0.0001178,2]
[17519,1714329083770,-500.0,0.0001178,2]
[17520,1714329083779,-1025.86,0.0001178,2]
[17521,1714329083788,-534.27,0.0001178,2]
[17523,1714329083806,-773.75,0.0001178,2]
[17524,1714329083815,-500.0,0.0001178,2]
[17525,1714329083824,-500.0,0.0001178,2]
[17526,1714329083834,-500.0,0.0001178,2]
[17527,1714329083844,-502.53953778,0.0001178,2]
[17528,1714329083853,-1055.21,0.0001178,2]
[17529,1714329083862,-500.0,0.0001178,2]
[17530,1714329083871,-500.0,0.0001178,2]
[17531,1714329083880,-731.11,0.0001178,2]
[17532,1714329083890,-1217.45,0.0001178,2]
[17533,1714329083899,-500.0,0.0001178,2]
[17534,1714329083909,-500.0,0.0001178,2]
[17535,1714329083919,-500.0,0.0001178,2]
[17536,1714329083928,-532.31,0.0001178,2]
[17537,1714329083938,-524.26834565,0.0001178,2]
[17538,1714329083947,-500.0,0.0001178,2]
[17539,1714329083956,-500.0,0.0001178,2]
[17540,1714329083966,-565.05192558,0.0001178,2]
[17541,1714329084045,-500.0,0.0001178,2]
[17542,1714329084055,-500.0,0.0001178,2]
[17543,1714329084064,-806.46,0.0001178,2]
[17544,1714329084073,-500.0,0.0001178,2]
[17545,1714329084083,-500.0,0.0001178,2]
[17546,1714329084092,-500.0,0.0001178,2]
[17547,1714329084101,-500.0,0.0001178,2]
[17548,1714329084110,-500.0,0.0001178,2]
[17549,1714329084119,-1304.76,0.0001178,2]
[17551,1714329084136,-504.5116296,0.0001178,2]
[17553,1714329084154,-662.77,0.0001178,2]
[17555,1714329084172,-500.0,0.0001178,2]
[17557,1714329084190,-503.47373684,0.0001178,2]
[17559,1714329084208,-1111.61,0.0001178,2]
[17561,1714329084225,-500.0,0.0001178,2]
[17563,1714329084243,-500.0,0.0001178,2]
[17565,1714329084262,-616.2,0.0001178,2]
[17567,1714329084280,-500.0,0.0001178,2]
[17569,1714329084297,-500.0,0.0001178,2]
[17570,1714329084306,-500.0,0.0001178,2]
[17571,1714329084315,-500.0,0.0001178,2]
[17572,1714329084324,-500.0,0.0001178,2]
[17573,1714329084333,-500.0,0.0001178,2]
[17575,1714329084351,-500.0,0.0001178,2]
[17576,1714329084359,-500.0,0.0001178,2]
[17577,1714329084368,-500.0,0.0001178,2]
[17578,1714329084377,-500.0,0.0001178,2]
[17579,1714329084386,-1180.8,0.0001178,2]
[17581,1714329084406,-500.0,0.0001178,2]
[17583,1714329084426,-601.02,0.0001178,2]
[17585,1714329084446,-652.81,0.0001178,2]
[17587,1714329084465,-500.0,0.0001178,2]
[17589,1714329084484,-500.0,0.0001178,2]
[17591,1714329084503,-500.0,0.0001178,2]
[17593,1714329084523,-1126.64,0.0001178,2]
[17594,1714329084532,-500.0,0.0001178,2]
[17595,1714329084541,-501.60384371,0.0001178,2]
[17597,1714329084561,-531.93,0.0001178,2]
[17598,1714329084570,-500.0,0.0001178,2]
[17599,1714329084579,-549.22,0.0001178,2]
[17601,1714329084599,-500.0,0.0001178,2]
[17602,1714329084608,-1788.12,0.0001178,2]
[17603,1714329084617,-500.0,0.0001178,2]
[17604,1714329084627,-500.0,0.0001178,2]
[17605,1714329084636,-150.0,0.0001178,2]
[17606,1714329084645,-500.0,0.0001178,2]
[17607,1714329084654,-705.96,0.0001178,2]
[17608,1714329084664,-534.17,0.0001178,2]
[17609,1714329084677,-500.0,0.0001178,2]
[17610,1714329084687,-500.0,0.0001178,2]
[17611,1714329084697,-579.33332157,0.0001178,2]
[17612,1714329084706,-500.0,0.0001178,2]
[17613,1714329084716,-500.0,0.0001178,2]
[17615,1714329084734,-500.0,0.0001178,2]
[17617,1714329084755,-500.0,0.0001178,2]
[17619,1714329084774,-1031.54,0.0001178,2]
[17621,1714329084792,-500.0,0.0001178,2]
[17623,1714329084811,-500.0,0.0001178,2]
[17625,1714329084829,-500.0,0.0001178,2]
[17627,1714329084849,-718.07,0.0001178,2]
[17628,1714329084858,-500.0,0.0001178,2]
[17629,1714329084867,-500.0,0.0001178,2]
[17630,1714329084876,-500.0,0.0001178,2]
[17631,1714329084886,-500.0,0.0001178,2]
[17632,1714329084895,-500.0,0.0001178,2]
[17633,1714329084904,-500.0,0.0001178,2]
[17634,1714329084914,-500.0,0.0001178,2]
[17635,1714329084923,-500.0,0.0001178,2]
[17636,1714329084931,-1114.07,0.0001178,2]
[17637,1714329084940,-500.0,0.0001178,2]
[17638,1714329084950,-500.0,0.0001178,2]
[17639,1714329084959,-500.0,0.0001178,2]
[17640,1714329084968,-616.00328144,0.0001178,2]
[17641,1714329084977,-500.0,0.0001178,2]
[17643,1714329084995,-500.0,0.0001178,2]
[17645,1714329085013,-500.0,0.0001178,2]
[17647,1714329085031,-500.0,0.0001178,2]
[17649,1714329085051,-500.0,0.0001178,2]
[17651,1714329085071,-768.98,0.0001178,2]
[17653,1714329085091,-648.5,0.0001178,2]
[17655,1714329085110,-717.43,0.0001178,2]
[17657,1714329085128,-500.0,0.0001178,2]
[17659,1714329085150,-673.41,0.0001178,2]
[17661,1714329085169,-1373.18,0.0001178,2]
[17663,1714329085190,-500.0,0.0001178,2]
[17665,1714329085209,-500.0,0.0001178,2]
[17667,1714329085227,-500.0,0.0001178,2]
[17669,1714329085245,-500.0,0.0001178,2]
[17671,1714329085264,-794.96,0.0001178,2]
[17673,1714329085282,-500.0,0.0001178,2]
[17675,1714329085302,-500.0,0.0001178,2]
[17677,1714329085323,-500.0,0.0001178,2]
[17679,1714329085342,-500.0,0.0001178,2]
[17681,1714329085361,-552.84,0.0001178,2]
[17683,1714329085379,-500.0,0.0001178,2]
[17685,1714329085398,-500.0,0.0001178,2]
[17687,1714329085417,-1173.43,0.0001178,2]
[17689,1714329085436,-500.0,0.0001178,2]
[17691,1714329085455,-1079.13,0.0001178,2]
[17693,1714329085473,-500.0,0.0001178,2]
[17695,1714329085491,-572.97,0.0001178,2]
[17697,1714329085509,-500.0,0.0001178,2]
[17699,1714329085527,-1722.94,0.0001178,2]
[17701,1714329085545,-779.67,0.0001178,2]
[17703,1714329085563,-500.0,0.0001178,2]
[17705,1714329085582,-500.0,0.0001178,2]
[17707,1714329085601,-501.69,0.0001178,2]
[17709,1714329085620,-503.6978761,0.0001178,2]
[17711,1714329085638,-500.0,0.0001178,2]
[17713,1714329085656,-500.0,0.0001178,2]
[17715,1714329085679,-500.0,0.0001178,2]
[17717,1714329085698,-500.0,0.0001178,2]
[17719,1714329085719,-778.4,0.0001178,2]
[17721,1714329085739,-500.0,0.0001178,2]
[17723,1714329085758,-500.0,0.0001178,2]
[17725,1714329085779,-818.36,0.0001178,2]
[17726,1714329085789,-504.94170499,0.0001178,2]
[17727,1714329085800,-862.57,0.0001178,2]
[17728,1714329085810,-503.95911396,0.0001178,2]
[17729,1714329085819,-500.0,0.0001178,2]
[17730,1714329085830,-519.57,0.0001178,2]
[17731,1714329085841,-860.79,0.0001178,2]
[17732,1714329085851,-162.74557193,0.0001178,2]
[17733,1714329085861,-500.0,0.0001178,2]
[17734,1714329085871,-500.0,0.0001178,2]
[17735,1714329085883,-1876.31,0.0001178,2]
[17736,1714329085894,-500.0,0.0001178,2]
[17737,1714329085905,-500.0,0.0001178,2]
[17738,1714329085915,-650.14,0.0001178,2]
[17739,1714329085925,-725.3,0.0001178,2]
[17740,1714329085935,-617.57,0.0001178,2]
[17741,1714329085944,-1054.31,0.0001178,2]
[17742,1714329085953,-1082.91,0.0001178,2]
[17743,1714329085962,-500.0,0.0001178,2]
[17745,1714329085981,-500.0,0.0001178,2]
[17747,1714329086000,-784.22,0.0001178,2]
[17749,1714329086019,-500.0,0.0001178,2]
[17751,1714329086038,-500.0,0.0001178,2]
[17753,1714329086057,-500.0,0.0001178,2]
[17755,1714329086076,-780.48,0.0001178,2]
[17757,1714329086096,-500.0,0.0001178,2]
[17759,1714329086114,-366.22636813,0.0001178,2]
[17761,1714329086132,-528.05,0.0001178,2]
[17763,1714329086151,-500.0,0.0001178,2]
[17765,1714329086169,-1205.16,0.0001178,2]
[17767,1714329086187,-500.0,0.0001178,2]
[17768,1714329086196,-658.26,0.0001178,2]
[17769,1714329086206,-500.0,0.0001178,2]
[17770,1714329086216,-500.0,0.0001178,2]
[17771,1714329086226,-500.0,0.0001178,2]
[17772,1714329086235,-500.0,0.0001178,2]
[17773,1714329086245,-1863.44,0.0001178,2]
[17775,1714329086263,-500.0,0.0001178,2]
[17776,1714329086273,-500.0,0.0001178,2]
[17777,1714329086282,-812.83,0.0001178,2]
[17778,1714329086291,-500.0,0.0001178,2]
[17779,1714329086300,-500.0,0.0001178,2]
[17780,1714329086310,-500.0,0.0001178,2]
[17781,1714329086319,-500.0,0.0001178,2]
[17783,1714329086338,-500.0,0.0001178,2]
[17785,1714329086358,-500.0,0.0001178,2]
[17787,1714329086377,-500.0,0.0001178,2]
[17789,1714329086398,-500.0,0.0001178,2]
[17791,1714329086417,-500.0,0.0001178,2]
[17793,1714329086437,-500.0,0.0001178,2]
[17795,1714329086456,-500.0,0.0001178,2]
[17797,1714329086475,-500.0,0.0001178,2]
[17799,1714329086493,-669.38,0.0001178,2]
[17800,1714329086503,-876.81,0.0001178,2]
[17801,1714329086512,-500.0,0.0001178,2]
[17803,1714329086531,-500.0,0.0001178,2]
[17804,1714329086540,-752.63,0.0001178,2]
[17805,1714329086549,-500.0,0.0001178,2]
[17806,1714329086559,-500.0,0.0001178,2]
[17807,1714329086568,-1089.32,0.0001178,2]
[17809,1714329086587,-1114.49,0.0001178,2]